[Event "XVI Open Internacional Villa de Ibi"]
[Site "Ibi, Spain"]
[Date "2018.09.09"]
[Round "1.1"]
[White "Plaskett, H James"]
[Black "Lopez Shchukina, Diego"]
[Result "1-0"]
[TimeControl "15' + 2'' por jugada"]
[WhiteElo "2450"]
[BlackElo "1832"]

1. d4 {[%clk 00:15:02]} {[%emt 00:00:23]} d5 {[%clk 00:15:02]} 2. c4 {[%clk
00:15:02]} e6 {[%clk 00:15:02]} 3. Nc3 {[%clk 00:15:03]} Nf6 {[%clk 00:15:02]}
{[%emt 00:00:14]} 4. Nf3 {[%clk 00:15:03]} Be7 {[%clk 00:15:02]} 5. Bf4 {[%clk
00:15:04]} O-O {[%clk 00:15:01]} 6. e3 {[%clk 00:15:04]} Ne4 {[%clk 00:13:07]}
{[%emt 00:01:52]} 7. Bd3 {[%clk 00:14:50]} {[%emt 00:00:15]} f5 {[%clk
00:13:07]} 8. Qc2 {[%clk 00:14:35]} {[%emt 00:00:19]} c6 {[%clk 00:13:07]} 9.
h3 {[%clk 00:14:06]} {[%emt 00:00:56]} a5 {[%clk 00:12:01]} {[%emt 00:00:35]}
10. g4 {[%clk 00:13:59]} {[%emt 00:00:11]} Na6 {[%clk 00:12:01]} {[%emt
00:00:07]} 11. a3 {[%clk 00:13:58]} {[%emt 00:00:10]} c5 {[%clk 00:11:01]}
{[%emt 00:00:53]} 12. gxf5 {[%clk 00:13:55]} {[%emt 00:00:08]} Nxc3 {[%clk
00:10:20]} {[%emt 00:00:40]} 13. f6 {[%clk 00:13:49]} {[%emt 00:00:07]} Ne4
{[%clk 00:09:30]} {[%emt 00:01:04]} 14. fxe7 {[%clk 00:13:47]} Qxe7 {[%clk
00:09:28]} 15. Bxe4 {[%clk 00:13:46]} {[%emt 00:00:04]} dxe4 {[%clk 00:09:28]}
16. Qxe4 {[%clk 00:13:46]} Bd7 {[%clk 00:08:51]} {[%emt 00:00:40]} 17. d5
{[%clk 00:13:32]} {[%emt 00:00:11]} Rae8 {[%clk 00:06:12]} {[%emt 00:02:44]} 18.
O-O-O {[%clk 00:13:20]} {[%emt 00:00:11]} b5 {[%clk 00:04:02]} {[%emt
00:02:22]} 19. Ng5 {[%clk 00:13:19]} Rf5 {[%clk 00:03:16]} {[%emt 00:00:49]} 20.
Nxe6 {[%clk 00:13:19]} Bxe6 {[%clk 00:03:16]} 21. dxe6 {[%clk 00:13:18]} {[%emt
00:00:17]} Qxe6 {[%clk 00:03:16]} 22. Qxe6+ {[%clk 00:13:18]} {[%emt 00:00:25]}
Rxe6 {[%clk 00:03:17]} 23. cxb5 {[%clk 00:13:19]} Rxf4 {[%clk 00:02:38]} {[%emt
00:00:09]} 24. exf4 {[%clk 00:13:18]} {[%emt 00:00:10]} Nc7 {[%clk 00:02:39]}
25. a4 {[%clk 00:13:18]} Re4 {[%clk 00:02:37]} 26. Rd8+ {[%clk 00:13:17]} Ne8
{[%clk 00:02:34]} {[%emt 00:00:07]} 27. b6 {[%emt 00:00:08]} 1-0

[Event "XVI Open Internacional Villa de Ibi"]
[Site "Ibi, Spain"]
[Date "2018.09.09"]
[Round "1.3"]
[White "Cruz Lledo, Pablo"]
[Black "Medina Cordero, Angel"]
[Result "1-0"]
[TimeControl "15' + 2'' por jugada"]
[WhiteElo "2436"]
[BlackElo "1806"]

1. d4 {[%clk 00:14:58]} {[%emt 00:00:03]} e6 {[%clk 00:15:02]} 2. c4 {[%clk
00:14:58]} {[%emt 00:00:04]} f5 {[%clk 00:15:02]} {[%emt 00:00:04]} 3. Nc3
{[%clk 00:14:57]} Bb4 {[%clk 00:14:56]} {[%emt 00:00:07]} 4. g3 {[%clk
00:14:50]} {[%emt 00:00:09]} Nf6 {[%clk 00:14:53]} {[%emt 00:00:05]} 5. Bg2
{[%clk 00:14:50]} {[%emt 00:00:03]} d5 {[%clk 00:14:49]} {[%emt 00:00:05]} 6.
Nf3 {[%clk 00:14:40]} {[%emt 00:00:12]} O-O {[%clk 00:14:46]} {[%emt 00:00:20]}
7. O-O {[%clk 00:14:38]} Bxc3 {[%clk 00:14:40]} 8. bxc3 {[%clk 00:14:37]} c6
{[%clk 00:14:39]} {[%emt 00:00:03]} 9. Ba3 {[%clk 00:14:34]} {[%emt 00:00:06]}
Re8 {[%clk 00:14:39]} {[%emt 00:00:03]} 10. Ne5 {[%clk 00:13:43]} {[%emt
00:00:49]} Nbd7 {[%clk 00:14:31]} {[%emt 00:00:14]} 11. f4 {[%clk 00:13:42]}
{[%emt 00:00:03]} Qc7 {[%clk 00:13:45]} {[%emt 00:00:44]} 12. e3 {[%clk
00:13:36]} {[%emt 00:00:10]} Ne4 {[%clk 00:13:17]} {[%emt 00:00:31]} 13. Bxe4
{[%clk 00:13:28]} {[%emt 00:00:08]} dxe4 {[%clk 00:12:59]} {[%emt 00:00:18]} 14.
g4 {[%clk 00:13:18]} {[%emt 00:00:13]} c5 {[%clk 00:12:24]} {[%emt 00:00:37]}
15. Bxc5 {[%clk 00:12:51]} {[%emt 00:00:28]} Nxc5 {[%clk 00:12:21]} {[%emt
00:00:09]} 16. dxc5 {[%clk 00:12:52]} {[%emt 00:00:03]} Rd8 {[%clk 00:11:55]}
{[%emt 00:00:24]} 17. Qe2 {[%clk 00:12:42]} {[%emt 00:00:20]} Bd7 {[%clk
00:11:19]} {[%emt 00:00:29]} 18. Rad1 {[%clk 00:12:24]} {[%emt 00:00:20]} Ba4
{[%clk 00:11:01]} {[%emt 00:00:42]} 19. Rd4 {[%clk 00:12:24]} Qxc5 {[%clk
00:10:46]} {[%emt 00:00:04]} 20. gxf5 {[%clk 00:12:00]} {[%emt 00:01:00]} exf5
{[%clk 00:10:26]} 21. Qh5 {[%clk 00:11:46]} {[%emt 00:00:12]} Qf8 {[%clk
00:09:57]} {[%emt 00:00:16]} 22. Rf2 {[%clk 00:11:36]} {[%emt 00:00:17]} Qf6
{[%clk 00:09:18]} {[%emt 00:00:36]} 23. Rfd2 {[%clk 00:11:30]} {[%emt
00:00:11]} g6 {[%clk 00:08:24]} {[%emt 00:00:52]} 24. Qh6 {[%clk 00:11:11]}
{[%emt 00:00:21]} Rxd4 {[%clk 00:06:57]} {[%emt 00:01:42]} 25. cxd4 {[%clk
00:10:32]} {[%emt 00:00:29]} Qb6 {[%clk 00:06:45]} {[%emt 00:00:32]} 26. Qh3
{[%clk 00:09:54]} {[%emt 00:00:22]} Bc2 {[%clk 00:06:02]} {[%emt 00:00:44]} 27.
Qf1 {[%clk 00:09:39]} {[%emt 00:00:16]} Ba4 {[%clk 00:04:27]} {[%emt 00:01:47]}
28. Qc1 {[%clk 00:09:31]} {[%emt 00:00:04]} Qc7 {[%clk 00:03:38]} {[%emt
00:00:55]} 29. c5 {[%clk 00:09:16]} {[%emt 00:00:11]} Rd8 {[%clk 00:02:28]}
{[%emt 00:01:10]} 30. Qc4+ {[%clk 00:09:11]} {[%emt 00:00:16]} 1-0

[Event "XVI Open Internacional Villa de Ibi"]
[Site "Ibi, Spain"]
[Date "2018.09.09"]
[Round "1.4"]
[White "Ferrero Sanchis, Enrique"]
[Black "Campos Gambuti, Luis Maria"]
[Result "0-1"]
[TimeControl "15' + 2'' por jugada"]
[WhiteElo "1765"]
[BlackElo "2382"]

1. d4 {[%clk 00:15:00]} {[%emt 00:00:40]} d5 {[%clk 00:15:02]} 2. Bf4 {[%clk
00:14:58]} Nf6 {[%clk 00:15:01]} 3. Nf3 {[%clk 00:14:58]} e6 {[%clk 00:15:01]}
{[%emt 00:00:04]} 4. e3 {[%clk 00:14:58]} Bd6 {[%clk 00:15:02]} 5. Ne5 {[%clk
00:14:50]} c5 {[%clk 00:14:52]} {[%emt 00:00:04]} 6. c3 {[%clk 00:14:48]}
{[%emt 00:00:04]} Qc7 {[%clk 00:14:39]} {[%emt 00:00:14]} 7. Nd2 {[%clk
00:14:39]} {[%emt 00:00:06]} Nc6 {[%clk 00:14:38]} {[%emt 00:00:26]} 8. Ndf3
{[%clk 00:14:35]} Nd7 {[%clk 00:14:29]} {[%emt 00:00:06]} 9. Bb5 {[%clk
00:13:24]} {[%emt 00:01:03]} O-O {[%clk 00:14:21]} {[%emt 00:00:32]} 10. Nxc6
{[%clk 00:12:57]} {[%emt 00:00:08]} bxc6 {[%clk 00:14:20]} {[%emt 00:00:04]} 11.
Bxd6 {[%clk 00:12:56]} {[%emt 00:00:03]} Qxd6 {[%clk 00:14:20]} 12. Bd3 {[%clk
00:12:53]} {[%emt 00:00:07]} f5 {[%clk 00:14:21]} 13. Ng5 {[%clk 00:11:46]}
{[%emt 00:01:06]} h6 {[%clk 00:13:52]} {[%emt 00:00:51]} 14. Nf3 {[%clk
00:10:42]} {[%emt 00:00:47]} Rb8 {[%clk 00:13:52]} {[%emt 00:00:14]} 15. b3
{[%clk 00:09:25]} {[%emt 00:01:07]} f4 {[%clk 00:11:59]} {[%emt 00:01:55]} 16.
e4 {[%clk 00:09:03]} {[%emt 00:00:24]} e5 {[%clk 00:11:54]} {[%emt 00:00:34]}
17. O-O {[%clk 00:06:02]} {[%emt 00:03:00]} cxd4 {[%clk 00:11:47]} {[%emt
00:00:04]} 18. cxd4 {[%clk 00:05:57]} exd4 {[%clk 00:11:43]} {[%emt 00:00:04]}
19. Nxd4 {[%clk 00:05:31]} {[%emt 00:00:19]} Ne5 {[%clk 00:11:43]} {[%emt
00:00:33]} 20. Nf3 {[%clk 00:04:51]} {[%emt 00:00:14]} Nxf3+ {[%clk 00:08:53]}
{[%emt 00:02:49]} 21. Qxf3 {[%clk 00:04:42]} {[%emt 00:00:45]} d4 {[%clk
00:08:54]} 22. Rfe1 {[%clk 00:04:16]} {[%emt 00:00:04]} Qe5 {[%clk 00:08:55]}
23. Bc4+ {[%clk 00:03:50]} {[%emt 00:00:26]} Kh8 {[%clk 00:08:52]} 24. Qd3
{[%clk 00:03:45]} {[%emt 00:00:07]} f3 {[%clk 00:08:53]} {[%emt 00:00:11]} 25.
g3 {[%clk 00:03:37]} {[%emt 00:00:04]} Bh3 {[%clk 00:08:34]} {[%emt 00:00:20]}
26. Qd2 {[%clk 00:03:27]} {[%emt 00:00:15]} Rbd8 {[%clk 00:07:50]} {[%emt
00:00:38]} 27. Bd3 {[%clk 00:03:19]} {[%emt 00:00:13]} h5 {[%clk 00:07:00]}
{[%emt 00:00:56]} 28. Rac1 {[%clk 00:02:54]} {[%emt 00:00:20]} h4 {[%clk
00:06:40]} {[%emt 00:00:22]} 29. Rxc6 {[%clk 00:02:44]} {[%emt 00:00:17]} Kh7
{[%clk 00:06:08]} {[%emt 00:00:29]} 30. Bf1 {[%clk 00:00:40]} {[%emt 00:02:07]}
Bd7 {[%clk 00:06:01]} {[%emt 00:00:23]} 31. Rc4 {[%clk 00:00:34]} {[%emt
00:00:11]} Be6 {[%clk 00:05:54]} 32. Rc2 {[%clk 00:00:25]} {[%emt 00:00:14]}
hxg3 {[%clk 00:05:53]} 33. hxg3 {[%clk 00:00:21]} {[%emt 00:00:03]} Rf6 {[%clk
00:05:14]} {[%emt 00:00:40]} 34. Rec1 {[%clk 00:00:13]} {[%emt 00:00:07]} d3
{[%clk 00:04:41]} {[%emt 00:00:36]} 35. Rc5 {[%clk 00:00:07]} {[%emt 00:00:10]}
Qxe4 {[%clk 00:04:37]} {[%emt 00:00:04]} 36. Qe3 {[%emt 00:00:11]} {Bandera}
0-1

[Event "XVI Open Internacional Villa de Ibi"]
[Site "Ibi, Spain"]
[Date "2018.09.09"]
[Round "1.5"]
[White "Granero Roca, Antonio"]
[Black "Domenech Pont, Juan Hermenegil"]
[Result "1-0"]
[TimeControl "15' + 2'' por jugada"]
[WhiteElo "2370"]
[BlackElo "1748"]

1. Nf3 {[%clk 00:15:00]} {[%emt 00:00:15]} Nf6 {[%clk 00:14:59]} 2. c4 {[%clk
00:15:00]} c6 {[%clk 00:14:53]} {[%emt 00:00:07]} 3. e3 {[%clk 00:14:56]}
{[%emt 00:00:03]} d5 {[%clk 00:14:49]} {[%emt 00:00:06]} 4. Nc3 {[%clk
00:14:51]} {[%emt 00:00:08]} Bg4 {[%clk 00:14:26]} {[%emt 00:00:21]} 5. h3
{[%clk 00:14:48]} {[%emt 00:00:12]} Bh5 {[%clk 00:14:20]} {[%emt 00:00:05]} 6.
d4 {[%clk 00:14:43]} {[%emt 00:00:07]} e6 {[%clk 00:14:14]} {[%emt 00:00:09]} 7.
Qb3 {[%clk 00:14:32]} {[%emt 00:00:08]} Qb6 {[%clk 00:13:58]} {[%emt 00:00:49]}
8. c5 {[%clk 00:14:30]} Qc7 {[%clk 00:13:36]} 9. Be2 {[%clk 00:14:29]} {[%emt
00:00:07]} Be7 {[%clk 00:13:20]} {[%emt 00:00:11]} 10. O-O {[%clk 00:14:26]}
{[%emt 00:00:05]} O-O {[%clk 00:13:18]} {[%emt 00:00:34]} 11. Bd2 {[%clk
00:14:22]} {[%emt 00:00:03]} Nbd7 {[%clk 00:13:11]} 12. Qc2 {[%clk 00:13:56]}
{[%emt 00:00:12]} Bg6 {[%clk 00:13:04]} {[%emt 00:00:33]} 13. Bd3 {[%clk
00:13:54]} Bxd3 {[%clk 00:12:59]} 14. Qxd3 {[%clk 00:13:55]} e5 {[%clk
00:12:45]} {[%emt 00:00:05]} 15. dxe5 {[%clk 00:13:38]} {[%emt 00:00:17]} Nxe5
{[%clk 00:12:38]} {[%emt 00:00:08]} 16. Nxe5 {[%clk 00:13:38]} {[%emt
00:00:16]} Qxe5 {[%clk 00:12:37]} 17. b4 {[%clk 00:13:38]} Rfd8 {[%clk
00:12:08]} {[%emt 00:00:22]} 18. Ne2 {[%clk 00:13:11]} {[%emt 00:00:29]} Ne4
{[%clk 00:11:31]} {[%emt 00:00:41]} 19. Rac1 {[%clk 00:12:49]} {[%emt
00:00:59]} Nxd2 {[%clk 00:10:28]} {[%emt 00:00:33]} 20. Qxd2 {[%clk 00:12:49]}
{[%emt 00:00:04]} Bf6 {[%clk 00:10:07]} {[%emt 00:00:17]} 21. Nd4 {[%clk
00:12:44]} {[%emt 00:00:15]} Qe4 {[%clk 00:09:36]} {[%emt 00:00:56]} 22. Rfd1
{[%clk 00:12:36]} Bxd4 {[%clk 00:09:26]} {[%emt 00:00:06]} 23. exd4 {[%clk
00:12:26]} Re8 {[%clk 00:09:18]} {[%emt 00:00:07]} 24. Re1 {[%clk 00:12:22]}
{[%emt 00:00:09]} Qh4 {[%clk 00:09:01]} {[%emt 00:00:15]} 25. Re3 {[%clk
00:12:13]} {[%emt 00:00:23]} Rxe3 {[%clk 00:08:18]} {[%emt 00:00:33]} 26. Qxe3
{[%clk 00:12:12]} {[%emt 00:00:10]} Qe4 {[%clk 00:07:55]} {[%emt 00:00:30]} 27.
Re1 {[%clk 00:11:40]} {[%emt 00:00:39]} Qxe3 {[%clk 00:07:49]} 28. fxe3 {[%clk
00:11:30]} {[%emt 00:00:07]} Re8 {[%clk 00:07:46]} {[%emt 00:00:03]} 29. Kf2
{[%clk 00:11:29]} {[%emt 00:00:05]} Re4 {[%clk 00:07:22]} {[%emt 00:00:23]} 30.
a4 {[%clk 00:11:28]} {[%emt 00:00:32]} f5 {[%clk 00:07:03]} {[%emt 00:00:03]}
31. g3 {[%clk 00:11:24]} g5 {[%clk 00:07:01]} {[%emt 00:00:03]} 32. Rd1 {[%clk
00:09:54]} {[%emt 00:01:28]} h5 {[%clk 00:06:46]} {[%emt 00:00:19]} 33. b5
{[%clk 00:09:54]} {[%emt 00:00:04]} f4 {[%clk 00:06:09]} {[%emt 00:00:34]} 34.
exf4 {[%clk 00:09:37]} {[%emt 00:00:28]} gxf4 {[%clk 00:05:59]} {[%emt
00:00:15]} 35. g4 {[%clk 00:09:38]} h4 {[%clk 00:05:39]} {[%emt 00:00:15]} 36.
Kf3 {[%clk 00:09:38]} {[%emt 00:00:04]} Re3+ {[%clk 00:04:53]} {[%emt
00:00:43]} 37. Kxf4 {[%clk 00:09:36]} {[%emt 00:00:18]} Rxh3 {[%clk 00:04:53]}
38. bxc6 {[%clk 00:09:32]} bxc6 {[%clk 00:04:52]} {[%emt 00:00:03]} 39. Rb1
{[%clk 00:09:29]} {[%emt 00:00:03]} Rd3 {[%clk 00:04:46]} {[%emt 00:00:06]} 40.
Ke5 {[%clk 00:09:19]} {[%emt 00:00:16]} h3 {[%clk 00:04:18]} {[%emt 00:00:25]}
41. Rh1 {[%clk 00:09:08]} {[%emt 00:00:32]} Kg7 {[%clk 00:04:08]} {[%emt
00:00:06]} 42. Kd6 {[%clk 00:09:09]} Rxd4 {[%clk 00:04:02]} 43. Rxh3 {[%clk
00:09:09]} {[%emt 00:00:04]} Rxg4 {[%clk 00:03:55]} {[%emt 00:00:04]} 44. Kxc6
{[%clk 00:09:07]} {[%emt 00:00:07]} Rxa4 {[%clk 00:03:54]} 45. Kxd5 {[%clk
00:09:03]} {[%emt 00:00:07]} Ra1 {[%clk 00:03:27]} {[%emt 00:00:26]} 46. c6
{[%clk 00:08:51]} {[%emt 00:00:25]} Rd1+ {[%clk 00:03:21]} 47. Ke6 {[%clk
00:08:47]} {[%emt 00:00:22]} Re1+ {[%clk 00:02:20]} {[%emt 00:01:05]} 48. Kd7
{[%clk 00:08:44]} Rd1+ {[%clk 00:01:54]} {[%emt 00:00:21]} 49. Kc8 {[%clk
00:08:42]} a5 {[%clk 00:01:47]} {[%emt 00:00:05]} 50. c7 {[%clk 00:08:26]}
{[%emt 00:00:24]} Kf7 {[%clk 00:01:34]} {[%emt 00:00:08]} 51. Rc3 {[%clk
00:08:20]} {[%emt 00:00:10]} Ke7 {[%clk 00:01:11]} {[%emt 00:00:24]} 52. Kb7
{[%clk 00:08:19]} {[%emt 00:00:07]} Rb1+ {[%clk 00:01:03]} {[%emt 00:00:04]} 53.
Ka6 {[%clk 00:08:04]} {[%emt 00:00:36]} 1-0

[Event "XVI Open Internacional Villa de Ibi"]
[Site "Ibi, Spain"]
[Date "2018.09.09"]
[Round "1.6"]
[White "Sanchez Carayol, Ricardo Jose"]
[Black "Diaz Velandia, Jose Manuel"]
[Result "0-1"]
[TimeControl "15' + 2'' por jugada"]
[WhiteElo "1745"]
[BlackElo "2368"]

1. e4 {[%clk 00:15:02]} {[%emt 00:00:10]} c6 {[%clk 00:15:03]} 2. d4 {[%clk
00:15:01]} d5 {[%clk 00:15:03]} 3. e5 {[%clk 00:15:01]} c5 {[%clk 00:15:04]}
{[%emt 00:00:04]} 4. c3 {[%clk 00:14:59]} {[%emt 00:00:06]} Nc6 {[%clk
00:15:05]} {[%emt 00:00:04]} 5. a3 {[%clk 00:14:45]} {[%emt 00:00:09]} cxd4
{[%clk 00:14:59]} {[%emt 00:00:09]} 6. cxd4 {[%clk 00:14:45]} {[%emt 00:00:04]}
Qb6 {[%clk 00:15:00]} {[%emt 00:00:06]} 7. Nc3 {[%clk 00:12:46]} {[%emt
00:01:59]} Qxd4 {[%clk 00:14:24]} {[%emt 00:00:31]} 8. Qxd4 {[%clk 00:12:33]}
{[%emt 00:00:30]} Nxd4 {[%clk 00:14:25]} 9. Nxd5 {[%clk 00:12:25]} {[%emt
00:00:08]} Nc2+ {[%clk 00:14:11]} {[%emt 00:00:10]} 10. Kd1 {[%clk 00:11:59]}
{[%emt 00:00:22]} Nxa1 {[%clk 00:14:10]} {[%emt 00:00:20]} 11. Nc7+ {[%clk
00:11:58]} Kd8 {[%clk 00:14:09]} 12. Nxa8 {[%clk 00:11:58]} Bf5 {[%clk
00:13:11]} {[%emt 00:00:51]} 13. Be3 {[%clk 00:10:48]} {[%emt 00:01:15]} b6
{[%clk 00:12:55]} {[%emt 00:00:28]} 14. Ba6 {[%clk 00:10:21]} {[%emt 00:00:16]}
Be4 {[%clk 00:12:40]} {[%emt 00:00:21]} 15. f3 {[%clk 00:09:50]} {[%emt
00:00:33]} Bxa8 {[%clk 00:12:35]} {[%emt 00:00:07]} 16. Bc4 {[%clk 00:09:50]}
{[%emt 00:00:03]} e6 {[%clk 00:12:18]} {[%emt 00:00:17]} 17. Kd2 {[%clk
00:08:52]} {[%emt 00:00:57]} Bd5 {[%clk 00:11:42]} {[%emt 00:00:38]} 18. Bxd5
{[%clk 00:08:52]} {[%emt 00:00:14]} exd5 {[%clk 00:11:43]} 19. Kc3 {[%clk
00:08:53]} Bc5 {[%clk 00:11:43]} 20. Bxc5 {[%clk 00:07:39]} {[%emt 00:01:08]}
bxc5 {[%clk 00:11:43]} {[%emt 00:00:38]} 21. b4 {[%clk 00:07:39]} c4 {[%clk
00:11:37]} 22. Ne2 {[%clk 00:07:34]} {[%emt 00:00:03]} Nb3 {[%clk 00:11:34]} 23.
Rd1 {[%clk 00:07:29]} Ne7 {[%clk 00:11:28]} {[%emt 00:00:03]} 24. Nf4 {[%clk
00:07:17]} {[%emt 00:00:18]} Kc7 {[%clk 00:11:11]} {[%emt 00:00:09]} 25. Nxd5+
{[%clk 00:07:16]} {[%emt 00:00:39]} Nxd5+ {[%clk 00:11:12]} 26. Rxd5 {[%clk
00:07:17]} Rd8 {[%clk 00:11:13]} 27. Kxc4 {[%clk 00:07:10]} Nd2+ {[%clk
00:10:37]} {[%emt 00:00:17]} 28. Kc5 {[%clk 00:07:06]} {[%emt 00:00:08]} Rxd5+
{[%clk 00:10:07]} {[%emt 00:00:28]} 29. Kxd5 {[%clk 00:07:06]} {[%emt
00:00:11]} Kd7 {[%clk 00:10:05]} 30. b5 {[%clk 00:06:31]} {[%emt 00:00:32]} Nf1
{[%clk 00:10:06]} 31. a4 {[%clk 00:06:25]} {[%emt 00:00:32]} Ne3+ {[%clk
00:10:07]} 32. Kc5 {[%clk 00:06:23]} Nxg2 {[%clk 00:09:19]} {[%emt 00:00:32]}
33. a5 {[%clk 00:06:12]} {[%emt 00:00:15]} Nf4 {[%clk 00:07:30]} {[%emt
00:01:53]} 34. b6 {[%clk 00:05:58]} {[%emt 00:00:13]} Ne6+ {[%clk 00:04:05]}
{[%emt 00:03:26]} 35. Kd5 {[%clk 00:04:23]} {[%emt 00:01:39]} axb6 {[%clk
00:03:55]} {[%emt 00:00:11]} 36. axb6 {[%clk 00:04:15]} {[%emt 00:00:40]} Nd8
{[%clk 00:03:46]} {[%emt 00:00:04]} 37. f4 {[%clk 00:04:07]} g6 {[%clk
00:03:36]} {[%emt 00:00:04]} 38. h4 {[%clk 00:03:41]} {[%emt 00:00:22]} Nb7
{[%clk 00:02:38]} {[%emt 00:01:01]} 39. h5 {[%clk 00:03:01]} {[%emt 00:00:48]}
gxh5 {[%clk 00:02:36]} {[%emt 00:00:03]} 40. f5 {[%clk 00:03:01]} h4 {[%clk
00:02:22]} {[%emt 00:00:17]} 41. Ke4 {[%clk 00:02:46]} {[%emt 00:00:13]} Kc6
{[%clk 00:01:56]} {[%emt 00:00:28]} 42. Kf4 {[%clk 00:01:47]} {[%emt 00:01:01]}
h3 {[%clk 00:01:57]} 43. Kg3 {[%clk 00:01:48]} {[%emt 00:00:30]} h2 {[%clk
00:01:58]} 44. Kxh2 {[%clk 00:01:49]} Kxb6 {[%clk 00:01:59]} 45. e6 {[%clk
00:01:49]} {[%emt 00:00:04]} fxe6 {[%clk 00:02:00]} 46. fxe6 {[%clk 00:01:46]}
Kc6 {[%clk 00:01:57]} 47. Kg3 {[%clk 00:01:46]} Kd6 {[%clk 00:01:58]} 48. Kg4
{[%clk 00:01:47]} Kxe6 {[%clk 00:01:59]} 49. Kg5 {[%clk 00:01:49]} Kf7 {[%clk
00:02:00]} 50. Kh6 {[%clk 00:01:50]} {[%emt 00:00:04]} Kg8 {[%clk 00:02:01]} 51.
Kh5 {[%clk 00:01:48]} Kg7 {[%clk 00:02:02]} 52. Kg5 {[%clk 00:01:49]} h6+
{[%clk 00:02:03]} {[%emt 00:00:04]} 53. Kf5 {[%clk 00:01:50]} Nd6+ {[%clk
00:02:04]} 54. Kg4 {[%clk 00:01:49]} Kg6 {[%clk 00:02:05]} 55. Kh4 {[%clk
00:01:50]} {[%emt 00:00:04]} h5 {[%clk 00:02:06]} 56. Kg3 Kg5 {[%clk 00:02:08]}
57. Kh3 {[%clk 00:01:50]} {[%emt 00:00:04]} h4 {[%clk 00:02:08]} 58. Kg2 {[%clk
00:01:51]} Kg4 {[%clk 00:02:10]} 59. Kg1 {[%clk 00:01:52]} {[%emt 00:00:07]}
Kg3 {[%clk 00:02:11]} 60. Kh1 {[%clk 00:01:53]} Nf5 {[%clk 00:02:12]} {[%emt
00:00:04]} 61. Kg1 {[%clk 00:01:53]} Ne3 {[%clk 00:02:13]} 62. Kh1 {[%clk
00:01:52]} Nd1 {[%clk 00:02:14]} {[%emt 00:00:03]} 63. Kg1 {[%clk 00:01:50]} h3
{[%clk 00:02:15]} {[%emt 00:00:04]} 0-1

[Event "XVI Open Internacional Villa de Ibi"]
[Site "Ibi, Spain"]
[Date "2018.09.09"]
[Round "1.7"]
[White "Serarols Mabras, Bernat"]
[Black "Sabater Hernandez, Fernando"]
[Result "1-0"]
[TimeControl "15' + 2'' por jugada"]
[WhiteElo "2367"]
[BlackElo "1741"]

1. d4 {[%clk 00:15:01]} {[%emt 00:00:03]} f5 {[%clk 00:15:02]} {[%emt
00:00:03]} 2. Nc3 {[%clk 00:15:01]} Nf6 {[%clk 00:14:55]} {[%emt 00:00:09]} 3.
Bg5 {[%clk 00:15:01]} {[%emt 00:00:04]} e6 {[%clk 00:14:37]} {[%emt 00:00:15]}
4. e4 {[%clk 00:14:59]} {[%emt 00:00:13]} h6 {[%clk 00:11:45]} {[%emt
00:02:46]} 5. Bxf6 {[%clk 00:14:59]} {[%emt 00:00:10]} Qxf6 {[%clk 00:11:30]}
{[%emt 00:00:08]} 6. e5 {[%clk 00:14:28]} {[%emt 00:00:36]} Qg6 {[%clk
00:10:46]} {[%emt 00:00:43]} 7. Nge2 {[%clk 00:13:56]} {[%emt 00:00:34]} b6
{[%clk 00:10:39]} {[%emt 00:00:15]} 8. Nf4 {[%clk 00:13:37]} {[%emt 00:00:18]}
Qf7 {[%clk 00:09:29]} {[%emt 00:01:09]} 9. h4 {[%clk 00:13:32]} {[%emt
00:00:15]} Bb7 {[%clk 00:09:17]} {[%emt 00:00:08]} 10. Nb5 {[%clk 00:10:51]}
{[%emt 00:02:41]} Na6 {[%clk 00:06:35]} {[%emt 00:02:44]} 11. h5 {[%clk
00:10:49]} {[%emt 00:00:33]} Rg8 {[%clk 00:05:04]} {[%emt 00:01:16]} 12. Bc4
{[%clk 00:10:14]} {[%emt 00:00:25]} c6 {[%clk 00:02:01]} {[%emt 00:03:18]} 13.
Nc3 {[%clk 00:10:01]} {[%emt 00:00:04]} b5 {[%clk 00:01:44]} {[%emt 00:00:17]}
14. Bd3 {[%clk 00:09:05]} {[%emt 00:00:58]} Nc7 {[%clk 00:01:45]} {[%emt
00:00:07]} 15. Nce2 {[%clk 00:08:50]} {[%emt 00:00:11]} a5 {[%clk 00:01:35]}
{[%emt 00:00:31]} 16. c3 {[%clk 00:08:17]} {[%emt 00:00:17]} c5 {[%clk
00:01:35]} {[%emt 00:00:12]} 17. Kf1 {[%clk 00:07:27]} {[%emt 00:00:41]} c4
{[%clk 00:01:16]} {[%emt 00:00:51]} 18. Bc2 {[%clk 00:07:27]} Bc6 {[%clk
00:00:42]} {[%emt 00:00:10]} 19. b3 {[%clk 00:06:42]} {[%emt 00:00:45]} Be4
{[%clk 00:00:24]} {[%emt 00:00:20]} 20. bxc4 {[%clk 00:06:35]} {[%emt
00:00:12]} bxc4 {[%clk 00:00:08]} {[%emt 00:00:15]} 21. Ba4 {[%clk 00:06:35]}
{[%emt 00:00:10]} Bc6 {[%emt 00:00:08]} 22. Ke1 {[%emt 00:00:05]} {Bandera} 1-0